bitfinex/quotes_BTCUSD_20240815
["timestamp","ask_amount","ask_price","bid_price","bid_amount"]
[1723710081581,0.0086978,58238.0,58237.0,2.7442725]
[1723710082422,0.0086978,58238.0,58237.0,2.82100777]
[1723710082869,0.0086978,58238.0,58237.0,2.36356641]
[1723710084152,0.0086978,58238.0,58237.0,2.41472638]
[1723710084383,0.0086978,58238.0,58237.0,2.36356641]
[1723710084565,0.0086978,58238.0,58237.0,2.41473148]
[1723710084784,0.0086978,58238.0,58237.0,2.36356641]
[1723710085589,0.0086978,58238.0,58237.0,2.44030395]
[1723710086226,0.0086978,58238.0,58237.0,2.07131086]
[1723710086381,0.0086978,58238.0,58237.0,2.09687995]
[1723710086590,0.0086978,58238.0,58237.0,1.99312065]
[1723710086798,0.0086978,58238.0,58237.0,1.94194241]
[1723710086994,0.0086978,58238.0,58237.0,1.99312389]
[1723710087196,0.0086978,58238.0,58237.0,1.82156935]
[1723710087398,0.0086978,58238.0,58237.0,1.39236808]
[1723710087602,0.0086978,58238.0,58237.0,1.3411866]
[1723710087960,0.0086978,58238.0,58237.0,1.34515093]
[1723710088390,0.0086978,58238.0,58237.0,1.86012947]
[1723710088792,0.0086978,58238.0,58237.0,1.91131095]
[1723710089012,0.0086978,58238.0,58237.0,1.86012947]
[1723710089231,0.0086978,58238.0,58237.0,1.68857493]
[1723710090249,0.0086978,58238.0,58237.0,1.34515093]
[1723710095543,0.0886978,58238.0,58237.0,0.55830293]
[1723710095749,0.9682978,58238.0,58237.0,0.21487893]
[1723710096769,0.1782978,58238.0,58237.0,0.20087893]
[1723710096926,0.1782978,58238.0,58237.0,0.54430293]
[1723710097371,0.9382978,58238.0,58237.0,0.54430293]
[1723710097783,0.1782978,58238.0,58237.0,0.55530293]
[1723710097984,0.1782978,58238.0,58237.0,0.54230293]
[1723710098127,0.1782978,58238.0,58237.0,0.53130293]
[1723710098331,0.1782978,58238.0,58237.0,0.19887893]
[1723710098552,0.1782978,58238.0,58237.0,0.19487893]
[1723710098752,0.1782978,58238.0,58237.0,0.53830293]
[1723710098973,0.1782978,58238.0,58237.0,0.53130293]
[1723710099980,0.1782978,58238.0,58237.0,0.19787893]
[1723710100419,0.1782978,58238.0,58237.0,0.19387893]
[1723710100621,0.1782978,58238.0,58237.0,0.54330293]
[1723710100799,0.1552978,58238.0,58237.0,1.3099282]
[1723710101421,0.1552978,58238.0,58237.0,1.3119282]
[1723710102809,0.1552978,58238.0,58237.0,1.22615093]
[1723710103095,0.1782978,58238.0,58237.0,0.53930293]
[1723710104250,0.1782978,58238.0,58237.0,0.88272693]
[1723710104732,0.1782978,58238.0,58237.0,0.53930293]
[1723710106977,0.9182978,58238.0,58237.0,0.53930293]
[1723710107588,0.9182978,58238.0,58237.0,0.19587893]
[1723710107793,0.9182978,58238.0,58237.0,0.02416693]
[1723710107794,1.08985234,58238.0,58237.0,0.02416693]
[1723710108027,1.08985234,58238.0,58237.0,0.19587893]
[1723710108224,1.08985234,58238.0,58237.0,0.02416693]
[1723710108995,1.26156134,58238.0,58237.0,0.02416693]
[1723710109850,1.60497934,58238.0,58237.0,0.02416693]
[1723710110062,1.26156134,58238.0,58237.0,0.02416693]
[1723710110455,1.60497934,58238.0,58237.0,0.02416693]
[1723710110672,1.26156134,58238.0,58237.0,0.02416693]
[1723710110875,1.26156134,58238.0,58237.0,0.02216693]
[1723710111106,1.26156134,58238.0,58237.0,0.01616693]
[1723710111315,1.60597934,58238.0,58237.0,0.002]
[1723710111488,1.26256134,58238.0,58237.0,0.01829524]
[1723710111727,0.1417,58236.0,58234.0,0.171719]
[1723710111923,0.19455454,58235.0,58234.0,0.171719]
[1723710113880,0.19455454,58235.0,58234.0,0.51516]
[1723710114339,0.19755454,58235.0,58234.0,0.51516]
[1723710114917,0.19755454,58235.0,58234.0,0.858601]
[1723710115536,0.19755454,58235.0,58234.0,0.51516]
[1723710115948,0.19755454,58235.0,58233.0,0.0009042]
[1723710116147,0.90755454,58235.0,58234.0,0.17172]
[1723710116762,0.90455454,58235.0,58234.0,0.17172]
[1723710117741,0.90755454,58235.0,58234.0,0.18809255]
[1723710118149,0.90455454,58235.0,58234.0,0.18809255]
[1723710118547,0.90755454,58235.0,58234.0,0.18809255]
[1723710118918,1.05265454,58235.0,58234.0,0.01637255]
[1723710119346,1.56780854,58235.0,58234.0,0.01637255]
[1723710119554,0.25412,58234.0,58233.0,0.0009042]
[1723710119773,1.07965454,58234.0,58233.0,0.0009042]
[1723710119953,1.07965454,58234.0,58233.0,0.18900472]
[1723710120285,0.33965454,58234.0,58233.0,0.53245172]
[1723710120525,0.33965454,58234.0,58233.0,0.18900472]
[1723710120932,0.34265454,58234.0,58233.0,0.18900472]
[1723710122273,0.34265454,58234.0,58233.0,0.53245172]
[1723710122658,0.34265454,58234.0,58233.0,0.18900472]
[1723710123890,1.28437454,58234.0,58233.0,0.01728172]
[1723710124092,1.11265454,58234.0,58233.0,0.18900472]
[1723710125682,1.11265454,58234.0,58233.0,0.01728172]
[1723710125919,1.11265454,58234.0,58233.0,0.18900472]
[1723710126538,1.11265454,58234.0,58233.0,0.01728172]
[1723710126824,1.11265454,58234.0,58233.0,0.18900472]
[1723710127792,0.34265454,58234.0,58233.0,0.53245172]
[1723710128064,0.34265454,58234.0,58233.0,0.18900472]
[1723710130960,1.09265454,58234.0,58233.0,0.01728172]
[1723710131409,1.09265454,58234.0,58233.0,0.18900472]
[1723710131603,1.09265454,58234.0,58233.0,0.01728172]
[1723710131966,1.09265454,58234.0,58233.0,0.18900472]
[1723710132161,0.34265454,58234.0,58233.0,0.53245172]
[1723710132795,0.1711,58234.0,58233.0,0.53245172]
[1723710133041,0.1711,58234.0,58233.0,1.29454572]
[1723710133042,0.003,58234.0,58233.0,1.29454572]
[1723710133221,0.003,58234.0,58233.0,1.45704572]
[1723710133427,0.003,58234.0,58233.0,1.80049272]
[1723710133894,0.003,58234.0,58233.0,2.32591598]
[1723710134099,0.0086978,58238.0,58237.0,1.201984]
[1723710134305,0.0086978,58238.0,58237.0,1.541684]
[1723710134478,0.0086978,58238.0,58237.0,1.885108]
[1723710134722,0.0086978,58238.0,58237.0,1.90149623]
[1723710135335,0.0086978,58238.0,58237.0,1.80679623]
[1723710135507,0.0086978,58238.0,58237.0,1.81279623]
[1723710135833,0.0086978,58238.0,58237.0,1.90749623]
[1723710137135,0.0086978,58238.0,58237.0,1.90949623]
[1723710138414,0.0086978,58238.0,58237.0,2.42447477]
[1723710138995,0.0086978,58238.0,58237.0,2.47558411]
[1723710139414,0.0086978,58238.0,58237.0,2.47358411]
[1723710139643,0.0086978,58238.0,58237.0,2.42947477]
[1723710139821,0.0086978,58238.0,58237.0,2.42547477]
[1723710140025,0.0086978,58238.0,58237.0,2.56737477]
[1723710140200,0.0086978,58238.0,58237.0,2.56037477]
[1723710140406,0.0086978,58238.0,58237.0,2.57437477]
[1723710141195,0.0086978,58238.0,58237.0,2.58337477]
[1723710142172,0.0086978,58238.0,58237.0,2.57237477]
[1723710142552,0.0086978,58238.0,58237.0,2.58637477]
[1723710147874,0.0002,58239.0,58238.0,2.373017]
[1723710148094,0.0002,58239.0,58238.0,2.66083528]
[1723710148330,1e-06,58239.0,58238.0,2.66283528]
[1723710148934,1e-06,58239.0,58238.0,2.66083528]
[1723710149079,1e-06,58239.0,58238.0,2.67483528]
[1723710149493,1e-06,58239.0,58238.0,2.68883528]
[1723710149860,1e-06,58239.0,58238.0,2.67483528]
[1723710150336,1e-06,58239.0,58238.0,2.68883528]
[1723710150885,1e-06,58239.0,58238.0,2.67483528]
[1723710151296,1e-06,58239.0,58238.0,2.68883528]
[1723710151740,1e-06,58239.0,58238.0,2.69083528]
[1723710152343,0.0002,58245.0,58244.0,1.545223]
[1723710152546,0.0002,58245.0,58244.0,1.87777754]
[1723710152747,0.0002,58245.0,58244.0,2.23725817]
[1723710152981,0.0002,58245.0,58244.0,2.31405817]
[1723710153548,0.0002,58245.0,58244.0,2.32405817]
[1723710154557,0.0002,58245.0,58244.0,2.33805817]
[1723710154762,0.0002,58245.0,58244.0,2.31405817]
[1723710155013,0.0002,58245.0,58244.0,2.32505817]
[1723710155215,0.0002,58245.0,58244.0,2.33905817]
[1723710156948,0.0002,58245.0,58244.0,2.34956039]
[1723710158244,0.0002,58245.0,58244.0,2.91854339]
[1723710158467,0.0002,58245.0,58244.0,2.91654339]
[1723710158671,0.0002,58245.0,58244.0,2.57316039]
[1723710158898,0.0002,58245.0,58244.0,2.57516039]
[1723710159287,0.0002,58245.0,58244.0,2.58916039]
[1723710159856,0.0002,58245.0,58244.0,2.57516039]
[1723710161109,0.0002,58245.0,58244.0,2.58916039]
[1723710161270,0.0002,58245.0,58244.0,2.57516039]
[1723710161679,0.0002,58245.0,58244.0,2.58916039]
[1723710161912,0.0002,58245.0,58244.0,2.44716039]
[1723710162629,0.0002,58245.0,58244.0,2.44916039]
[1723710162832,0.0002,58245.0,58244.0,2.43516039]
[1723710163044,0.0002,58245.0,58244.0,2.43316039]
[1723710163982,0.0002,58245.0,58244.0,2.41916039]
[1723710164222,0.0002,58245.0,58244.0,2.43316039]
[1723710164438,0.0002,58245.0,58244.0,2.44716039]
[1723710164637,0.0002,58245.0,58244.0,2.41916039]
[1723710164812,0.001022,58245.0,58244.0,2.41916039]
[1723710165116,0.001022,58245.0,58244.0,2.44716039]
[1723710165561,0.001022,58245.0,58244.0,2.10377739]
[1723710165700,0.001022,58245.0,58244.0,2.04277739]
[1723710166528,0.001022,58245.0,58244.0,2.21476039]
[1723710166868,0.001022,58245.0,58244.0,2.30936039]
[1723710167443,0.065822,58245.0,58244.0,1.96597739]
[1723710167642,0.065822,58245.0,58244.0,1.79442285]
[1723710167946,0.001022,58245.0,58244.0,1.79442285]
[1723710172340,0.076822,58245.0,58244.0,1.79442285]
[1723710172543,0.076822,58245.0,58244.0,1.69442285]
[1723710172924,0.139222,58245.0,58244.0,1.69442285]
[1723710173627,0.139222,58245.0,58244.0,1.68042285]
[1723710173761,0.139222,58245.0,58244.0,1.78042285]
[1723710174227,0.139222,58245.0,58244.0,1.76642285]
[1723710174410,0.139222,58245.0,58244.0,1.78042285]
[1723710174942,0.139222,58245.0,58244.0,1.76642285]
[1723710175070,0.139222,58245.0,58244.0,1.78542285]
[1723710177446,0.139222,58245.0,58244.0,1.77897945]
[1723710178499,0.139222,58245.0,58244.0,1.68437945]
[1723710178850,0.139222,58245.0,58244.0,1.77897945]
[1723710179886,0.139222,58245.0,58244.0,1.43559645]
[1723710180698,0.001022,58245.0,58244.0,1.43559645]
[1723710182179,0.001022,58245.0,58244.0,1.77897945]
[1723710182751,0.001022,58245.0,58244.0,1.84457945]
[1723710183396,0.144122,58245.0,58244.0,0.64372823]
[1723710183647,0.144122,58245.0,58244.0,0.88711123]
[1723710183831,0.144122,58245.0,58244.0,0.89188358]
[1723710184010,0.144122,58245.0,58244.0,0.98648358]
[1723710184428,0.144122,58245.0,58244.0,0.97448358]
[1723710184651,0.144122,58245.0,58244.0,0.97348358]
[1723710185109,0.144122,58245.0,58244.0,0.97448358]
[1723710185312,0.144122,58245.0,58244.0,1.31786658]
[1723710185897,0.001022,58245.0,58244.0,1.31786658]
[1723710186064,0.001022,58245.0,58244.0,1.41786658]
[1723710186449,0.001022,58245.0,58244.0,1.76124958]
[1723710187056,0.001022,58245.0,58244.0,1.75424958]
[1723710187255,0.001022,58245.0,58244.0,1.76624958]
[1723710187466,0.001022,58245.0,58244.0,1.77324958]
[1723710190126,0.001022,58245.0,58244.0,1.42986658]
[1723710191181,0.001022,58245.0,58244.0,1.77324958]
[1723710191588,0.079422,58245.0,58244.0,1.42986658]
[1723710192181,0.140322,58245.0,58244.0,1.42986658]
[1723710198456,0.061922,58245.0,58244.0,1.42986658]
[1723710199022,0.001022,58245.0,58244.0,1.42986658]
[1723710202135,0.001022,58245.0,58244.0,1.50856658]
[1723710202593,0.001022,58245.0,58244.0,1.85194958]
[1723710204231,0.001022,58245.0,58244.0,1.42986658]
[1723710205195,0.061622,58245.0,58244.0,1.42986658]
[1723710211526,0.144822,58245.0,58244.0,0.54850058]
[1723710212212,0.144822,58245.0,58244.0,0.89188358]
[1723710212638,0.001022,58245.0,58244.0,1.31086658]
[1723710212841,0.001022,58245.0,58244.0,1.31186658]
[1723710213111,0.001022,58245.0,58244.0,1.31786658]
[1723710218695,0.001022,58245.0,58244.0,1.22326658]
[1723710218901,0.145222,58245.0,58244.0,0.87988358]
[1723710219618,0.145222,58245.0,58244.0,1.22326658]
[1723710219876,0.145222,58245.0,58244.0,0.87988358]
[1723710223089,0.145222,58245.0,58244.0,0.19311758]
[1723710223275,0.888222,58245.0,58244.0,0.19311758]
[1723710223475,0.168222,58245.0,58244.0,0.87988358]
[1723710223734,0.168222,58245.0,58244.0,0.53650058]
[1723710230217,0.063922,58245.0,58244.0,1.31786658]
[1723710230619,0.146422,58245.0,58244.0,0.87988358]
[1723710231018,0.146422,58245.0,58244.0,0.53650058]
[1723710231247,0.146422,58245.0,58244.0,0.87988358]
[1723710231422,0.169422,58245.0,58244.0,0.87988358]
[1723710232661,0.169422,58245.0,58244.0,0.53650058]
[1723710234478,0.169422,58245.0,58244.0,0.87988358]
[1723710234724,0.169422,58245.0,58244.0,0.53650058]
[1723710235040,0.169422,58245.0,58244.0,0.87988358]
[1723710235339,0.169422,58245.0,58244.0,0.53650058]
[1723710235887,0.146422,58245.0,58244.0,0.87988358]
[1723710240515,0.146422,58245.0,58244.0,0.97448358]
[1723710240667,0.001022,58245.0,58244.0,0.97448358]
[1723710242324,0.001022,58245.0,58244.0,1.31786658]
[1723710242934,0.001022,58245.0,58244.0,0.97448358]
[1723710243312,0.001022,58245.0,58244.0,1.22326658]
[1723710243737,0.001022,58245.0,58244.0,1.31786658]
[1723710244587,0.001022,58245.0,58244.0,1.32801302]
[1723710247270,0.001022,58245.0,58244.0,1.23341302]
[1723710247466,0.001022,58245.0,58244.0,1.31786658]
[1723710248372,0.001022,58245.0,58244.0,0.97448358]
[1723710248874,0.001022,58245.0,58244.0,1.31786658]
[1723710252226,0.001022,58245.0,58244.0,1.90214958]
[1723710252658,0.001022,58245.0,58244.0,1.55876658]
[1723710253247,0.001022,58245.0,58244.0,1.90214958]
[1723710253479,0.001022,58245.0,58244.0,1.89614958]
[1723710253694,0.001022,58245.0,58244.0,1.89514958]
[1723710253893,0.001022,58245.0,58244.0,1.90714958]
[1723710254071,0.001022,58245.0,58244.0,1.91414958]
[1723710255980,0.001022,58245.0,58244.0,1.57076658]
[1723710256385,0.001022,58245.0,58244.0,1.91414958]
[1723710260837,0.00821,58258.0,58244.0,1.54368627]
[1723710260994,0.00821,58258.0,58257.0,1.86665427]
[1723710261193,0.00821,58258.0,58257.0,2.13820881]
[1723710261392,0.00821,58258.0,58257.0,2.1510516]
[1723710261612,0.00821,58258.0,58257.0,2.4943576]
[1723710262320,4.6e-07,58263.0,58262.0,0.343276]
[1723710262541,4.6e-07,58263.0,58262.0,1.30744454]
[1723710262680,0.0647,58279.0,58262.0,1.30744454]
[1723710262681,3e-07,58279.0,58278.0,0.857955]
[1723710262899,0.06283761,58289.0,58278.0,0.857955]
[1723710262900,0.0113749,58289.0,58288.0,0.343123]
[1723710263123,0.05988983,58304.0,58296.0,0.85769]
[1723710263124,0.51466362,58298.0,58296.0,0.85769]
[1723710263334,0.15869407,58310.0,58296.0,0.85769]
[1723710263335,0.05146271,58325.0,58318.0,0.171473]
[1723710263500,0.0002,58327.0,58318.0,0.171473]
[1723710263501,0.0779,58324.0,58318.0,0.51442]
[1723710263721,0.0779,58324.0,58318.0,0.52737416]
[1723710264295,0.0804,58326.0,58318.0,0.52737416]
[1723710264493,0.0804,58326.0,58318.0,0.87032116]
[1723710265704,0.171453,58325.0,58318.0,0.52737416]
[1723710265906,0.31997,58319.0,58318.0,0.01395416]
[1723710266129,0.31997,58319.0,58318.0,0.00912924]
[1723710266353,0.31997,58319.0,58318.0,0.001]
[1723710266354,0.662911,58319.0,58318.0,0.001]
[1723710266555,1.005852,58319.0,58318.0,0.001]
[1723710266799,0.0796,58313.0,58312.0,0.342982]
[1723710267048,0.0665,58319.0,58301.0,0.343046]
[1723710267049,0.0796,58318.0,58317.0,0.514429]
[1723710267235,0.0665,58319.0,58318.0,0.51442]
[1723710267498,0.0665,58319.0,58318.0,0.52255872]
[1723710267682,0.0665,58319.0,58318.0,0.86550572]
[1723710268198,0.0665,58319.0,58318.0,0.17961172]
[1723710268409,0.06635974,58319.0,58318.0,0.52255872]
[1723710268744,0.06635974,58319.0,58318.0,0.86550572]
[1723710268948,5.974e-05,58319.0,58318.0,1.20845272]
[1723710269450,5.974e-05,58319.0,58318.0,0.86550572]
[1723710269644,5.974e-05,58319.0,58318.0,0.52255872]
[1723710270474,5.974e-05,58319.0,58318.0,0.86550572]
[1723710271051,5.974e-05,58319.0,58318.0,0.52255872]
[1723710271309,5.974e-05,58319.0,58318.0,0.86550572]
[1723710271725,5.974e-05,58319.0,58318.0,0.86650572]
[1723710271928,5.974e-05,58319.0,58318.0,0.52255872]
[1723710272369,5.974e-05,58319.0,58318.0,0.86550572]
[1723710272564,0.00088174,58319.0,58318.0,0.86750572]
[1723710272990,0.00088174,58319.0,58318.0,0.52455872]
[1723710273388,0.00088174,58319.0,58318.0,0.52255872]
[1723710273809,0.00088174,58319.0,58318.0,0.17961172]
[1723710274013,0.00088174,58319.0,58318.0,0.52255872]
[1723710274250,0.00088174,58319.0,58318.0,0.86550572]
[1723710274848,0.00088174,58319.0,58318.0,0.86850572]
[1723710275096,0.00088174,58319.0,58318.0,0.52255872]
[1723710275619,0.17243628,58319.0,58318.0,0.00813872]
[1723710275823,1.64424728,58319.0,58318.0,0.00813872]
[1723710275971,1.12983628,58319.0,58310.0,0.34299]
[1723710276327,0.19455454,58318.0,58316.0,0.171478]
[1723710276502,0.19455454,58318.0,58311.0,0.17956692]
[1723710276503,0.171486,58314.0,58311.0,0.17956692]
[1723710276734,0.24965454,58313.0,58312.0,0.171491]
[1723710276912,0.27265454,58313.0,58312.0,0.52255578]
[1723710277262,0.27265454,58313.0,58312.0,0.86553778]
[1723710277464,0.1011,58313.0,58312.0,0.86553778]
[1723710278093,0.0789,58317.0,58316.0,0.514438]
[1723710278304,0.1019,58317.0,58316.0,0.52255572]
[1723710278508,0.00088174,58319.0,58318.0,0.857367]
[1723710278906,0.00088174,58319.0,58318.0,0.17959898]
[1723710279253,0.00088174,58319.0,58318.0,0.52254598]
[1723710282788,0.00088174,58319.0,58318.0,0.86549298]
[1723710284174,0.00088174,58319.0,58318.0,0.86639608]
[1723710285666,0.00088174,58319.0,58318.0,0.52344908]
[1723710286246,0.78088174,58319.0,58318.0,0.52344908]
[1723710286423,0.02388174,58319.0,58318.0,0.52344908]
[1723710286625,0.02388174,58319.0,58318.0,0.86639608]
[1723710286848,0.00088174,58319.0,58318.0,0.86639608]
[1723710287958,0.00088174,58319.0,58318.0,0.52344908]
[1723710288588,0.79088174,58319.0,58318.0,0.52344908]
[1723710288810,0.81388174,58319.0,58318.0,0.52344908]
[1723710289575,0.98543628,58319.0,58318.0,0.00902908]
[1723710289840,2.07833191,58319.0,58318.0,0.00902908]
[1723710290048,2.07833191,58319.0,58318.0,0.0009031]
[1723710290049,2.42127291,58319.0,58318.0,0.0009031]
[1723710290250,2.76421391,58319.0,58318.0,0.0009031]
[1723710290890,2.77421391,58319.0,58318.0,0.0009031]
[1723710291007,0.17153,58299.0,58295.0,0.17154]
[1723710291207,0.17153,58299.0,58296.0,0.171538]
[1723710291208,0.06,58297.0,58296.0,0.171538]
[1723710291615,0.083,58297.0,58296.0,0.171538]
[1723710291817,0.25455454,58297.0,58290.0,0.343109]
[1723710292024,0.25455454,58297.0,58267.0,0.43102327]
[1723710292025,0.19455454,58296.0,58289.0,0.343116]
[1723710292231,0.171548,58293.0,58289.0,0.171558]
[1723710292426,0.19455,58292.0,58285.0,0.343138]
[1723710292633,0.19455,58292.0,58287.0,0.343124]
[1723710292634,0.19455454,58292.0,58287.0,0.343124]
[1723710292842,0.19455454,58292.0,58286.0,0.343134]
[1723710292843,0.19455454,58292.0,58289.0,0.171557]
[1723710293292,0.19455454,58292.0,58290.0,0.171555]
[1723710293494,0.19455454,58292.0,58291.0,0.514659]
[1723710293698,0.19455454,58292.0,58291.0,0.857765]
[1723710293910,0.343052,58301.0,58291.0,0.857765]
[1723710293911,0.10088174,58319.0,58293.0,0.343091]
[1723710294133,0.10088174,58319.0,58302.0,0.08577727]
[1723710294134,0.31885454,58318.0,58302.0,0.08577727]
[1723710294341,0.171481,58316.0,58312.0,0.17149]
[1723710294543,1.08885454,58318.0,58313.0,0.171488]
[1723710294544,0.17155454,58315.0,58313.0,0.171488]
[1723710294745,0.17155454,58315.0,58310.0,0.342992]
[1723710294954,0.17155454,58315.0,58312.0,0.171491]
[1723710295159,0.34303754,58315.0,58312.0,0.171491]
[1723710295371,0.17155454,58315.0,58312.0,0.171489]
[1723710295580,0.17155454,58315.0,58312.0,0.172489]
[1723710295824,0.17155454,58315.0,58312.0,0.001]
[1723710295998,0.17155454,58315.0,58314.0,0.514455]
[1723710296198,0.17155454,58315.0,58314.0,0.171485]
[1723710296408,0.17355454,58315.0,58314.0,0.171485]
[1723710296872,0.17855454,58315.0,58314.0,0.171485]
[1723710297038,0.20155454,58315.0,58314.0,0.171485]
[1723710297493,0.171486,58314.0,58312.0,0.002]
[1723710297696,0.19455454,58313.0,58312.0,0.002]
[1723710297903,0.98455454,58313.0,58312.0,0.001]
[1723710298104,1.15604254,58313.0,58309.0,0.171499]
[1723710298309,0.98455454,58313.0,58312.0,0.171491]
[1723710298516,0.19455454,58313.0,58312.0,0.171491]
[1723710299046,0.023,58313.0,58312.0,0.514473]
[1723710299249,0.023,58317.0,58315.0,0.171482]
[1723710299393,0.17155454,58316.0,58315.0,0.171482]
[1723710299593,0.17155454,58316.0,58313.0,0.171486]
[1723710299594,0.19455454,58316.0,58313.0,0.171486]
[1723710299875,0.023,58315.0,58313.0,0.171486]
[1723710300068,0.023,58315.0,58312.0,0.342982]
[1723710300069,0.813,58315.0,58314.0,0.171485]
[1723710300372,0.19455454,58315.0,58313.0,0.171487]
[1723710300574,0.00088174,58319.0,58318.0,0.51442]
[1723710300939,0.00088174,58319.0,58318.0,0.171473]
[1723710301179,0.17243628,58319.0,58315.0,0.34296]
[1723710301468,0.17155454,58318.0,58317.0,0.171476]
[1723710301875,0.00088174,58319.0,58315.0,0.342964]
[1723710301876,0.005,58316.0,58315.0,0.342964]
[1723710302107,0.005,58316.0,58315.0,0.85741]
[1723710302236,0.00088174,58319.0,58318.0,0.51442]
[1723710302599,0.00088174,58319.0,58318.0,0.857367]
[1723710303350,0.00088174,58319.0,58318.0,0.859367]
[1723710303567,0.00188174,58319.0,58318.0,0.859367]
[1723710303965,0.0014371,58319.0,58318.0,0.859367]
[1723710304456,0.0014371,58319.0,58318.0,1.202314]
[1723710304723,0.0014371,58319.0,58318.0,1.200314]
[1723710304931,0.0004371,58319.0,58318.0,1.200314]
[1723710305119,0.0004371,58319.0,58318.0,1.608161]
[1723710305277,0.0004371,58319.0,58318.0,1.788561]
[1723710305278,0.0014371,58319.0,58318.0,1.788561]
[1723710305479,0.0014371,58319.0,58318.0,1.790561]
[1723710305675,0.0004371,58319.0,58318.0,1.45767303]
[1723710305931,0.0004371,58319.0,58318.0,0.957367]
[1723710306128,0.0004371,58319.0,58318.0,0.61442]
[1723710306329,0.0004371,58319.0,58318.0,0.61742]
[1723710306666,0.0004371,58319.0,58318.0,0.51742]
[1723710306867,0.0004371,58319.0,58318.0,0.52842]
[1723710307066,0.0004371,58319.0,58318.0,0.52542]
[1723710307515,0.0004371,58319.0,58318.0,0.868367]
[1723710307714,0.0004371,58319.0,58318.0,0.011]
[1723710307715,0.34346164,58319.0,58318.0,0.011]
[1723710307883,0.19499164,58319.0,58318.0,0.0119031]
[1723710308295,0.19499164,58319.0,58318.0,0.0009031]
[1723710308522,0.19499164,58319.0,58318.0,0.0189031]
[1723710308700,0.51499164,58319.0,58318.0,0.0049031]
[1723710309097,0.19499164,58319.0,58318.0,0.0049031]
[1723710309299,0.19499164,58319.0,58318.0,0.1843761]
[1723710309480,0.58499164,58319.0,58318.0,0.1843761]
[1723710309682,0.19499164,58319.0,58318.0,0.1843761]
[1723710309904,0.55499164,58319.0,58318.0,0.1843761]
[1723710310101,0.19499164,58319.0,58318.0,0.0129031]
[1723710310349,1.15646164,58319.0,58318.0,0.0129031]
[1723710310520,0.98499164,58319.0,58318.0,0.0129031]
[1723710310831,1.15646164,58319.0,58318.0,0.0129031]
[1723710311256,0.70940264,58319.0,58318.0,0.0129031]
[1723710311453,1.6332429,58319.0,58318.0,0.0129031]
[1723710311656,2.6355249,58319.0,58318.0,0.0129031]
[1723710312007,2.45046686,58319.0,58318.0,0.0129031]
[1723710312202,2.3795266,58319.0,58318.0,0.0129031]
[1723710312444,2.3795266,58319.0,58318.0,0.0089031]
[1723710312645,2.32948464,58319.0,58318.0,0.0009031]
[1723710312858,2.46378137,58319.0,58318.0,0.0009031]
[1723710313058,2.46278137,58319.0,58318.0,0.0019031]
[1723710313317,2.40504759,58319.0,58318.0,0.0009031]
[1723710313496,2.41004759,58319.0,58318.0,0.0019031]
[1723710313695,2.33348464,58319.0,58318.0,0.0029031]
[1723710314149,2.41004759,58319.0,58318.0,0.0029031]
[1723710314355,2.33348464,58319.0,58318.0,0.0029031]
[1723710314512,2.41004759,58319.0,58318.0,0.0029031]
[1723710315806,3.16064313,58319.0,58318.0,0.0029031]
[1723710316011,2.89887204,58319.0,58318.0,0.0029031]
[1723710316213,2.92538482,58319.0,58318.0,0.0029031]
[1723710316508,3.26832582,58319.0,58318.0,0.0029031]
[1723710316755,3.26332582,58319.0,58318.0,0.0019031]
[1723710316971,3.26332582,58319.0,58318.0,0.0009031]
[1723710317139,3.23881304,58319.0,58318.0,0.0019031]
[1723710317540,3.26532226,58319.0,58318.0,0.0019031]
[1723710317741,4.57382226,58319.0,58318.0,0.0019031]
[1723710317944,4.55382226,58319.0,58318.0,0.0019031]
[1723710318143,4.55782226,58319.0,58318.0,0.0029031]
[1723710318371,4.68517486,58319.0,58318.0,0.0029031]
[1723710318586,4.53131304,58319.0,58318.0,0.0029031]
[1723710318906,4.53771666,58319.0,58318.0,0.0019031]
[1723710319577,4.55171666,58319.0,58318.0,0.0019031]
[1723710319781,4.54171666,58319.0,58318.0,0.0019031]
[1723710319997,4.55171666,58319.0,58318.0,0.0019031]
[1723710320190,4.56171666,58319.0,58318.0,0.0019031]
[1723710320395,4.18837204,58319.0,58318.0,0.0019031]
[1723710320600,4.0168175,58319.0,58318.0,0.0019031]
[1723710321005,4.0268175,58319.0,58318.0,0.0019031]
[1723710321222,4.20717295,58319.0,58318.0,0.0019031]
[1723710321439,4.39625889,58319.0,58318.0,0.0019031]
[1723710321568,4.56781343,58319.0,58318.0,0.0019031]
[1723710323467,4.72161364,58319.0,58318.0,0.0019031]
[1723710323651,4.56781343,58319.0,58318.0,0.0019031]
[1723710324234,4.72160343,58319.0,58318.0,0.0019031]
[1723710324429,4.72159835,58319.0,58318.0,0.0019031]
[1723710325601,4.74159835,58319.0,58318.0,0.0019031]
[1723710325744,4.56780708,58319.0,58318.0,0.0019031]
[1723710326728,4.58780708,58319.0,58318.0,0.0019031]
[1723710327448,4.56780708,58319.0,58318.0,0.0019031]
[1723710327992,4.54131304,58319.0,58318.0,0.0019031]
[1723710329912,4.69508884,58319.0,58318.0,0.0019031]
[1723710330671,4.56780768,58319.0,58318.0,0.0019031]
[1723710331656,4.55180768,58319.0,58318.0,0.0009031]
[1723710332190,4.57680768,58319.0,58318.0,0.0029031]
[1723710332316,4.56580768,58319.0,58318.0,0.0019031]
[1723710332519,4.55180768,58319.0,58318.0,0.0009031]
[1723710333491,4.57180768,58319.0,58318.0,0.0009031]
[1723710334045,4.58580768,58319.0,58318.0,0.0019031]
[1723710334267,4.59980768,58319.0,58318.0,0.0019031]
[1723710335006,4.58580768,58319.0,58318.0,0.0019031]
[1723710335175,4.57180768,58319.0,58318.0,0.0009031]
[1723710335351,4.57181536,58319.0,58318.0,0.0009031]
[1723710335560,4.59981536,58319.0,58318.0,0.0019031]
[1723710336547,4.59981536,58319.0,58294.0,0.0781]
[1723710336548,0.857705,58295.0,58294.0,0.0781]
[1723710336748,1.05617754,58295.0,58294.0,0.0781]
[1723710337545,1.39925954,58295.0,58294.0,0.0781]
[1723710337751,1.05917754,58295.0,58294.0,0.0801]
[1723710338082,0.171551,58292.0,58291.0,0.0811]
[1723710338305,1.13310554,58292.0,58291.0,0.0811]
[1723710338623,1.49920554,58292.0,58291.0,0.0811]
[1723710338983,0.514659,58291.0,58290.0,0.0009031]
[1723710339183,1.84231954,58291.0,58290.0,0.0009031]
[1723710339537,2.18542554,58291.0,58290.0,0.0009031]
[1723710340052,2.30270843,58291.0,58290.0,0.0009031]
[1723710340275,2.30923852,58291.0,58290.0,0.0009031]
[1723710340484,2.01387408,58291.0,58290.0,0.0009031]
[1723710340940,2.06513572,58291.0,58290.0,0.0009031]
[1723710341272,2.07913572,58291.0,58290.0,0.0009031]